Cogmind - Beta 12 --- EXPLORER MODE // 2023.12.07 @ 23:50:44 // Winter2019/RPGLIKE Player: TheAnchor Result: Destroyed by P-60 Hacker with Shock Rifle Performance ------------- Evolutions (3) 1500 Regions Visited (12) 2400 Robots Destroyed (411) 2055 Value Destroyed (13957) 13957 Prototype IDs (22) 440 Alien Tech Used (0) 0 Bonus (4707) 4707 TOTAL SCORE: 25059 Bonus ------- High Alert Combat Kills 1335 Follower Combat Kills 169 Entered Garrisons 600 Used RIF Installer 3000 Friendly Fire -397 Cogmind --------- Core Integrity 0/700 Matter 0/300 Energy 210/340 System Corruption 4% Temperature Cool (0) Movement Rolling (110) Ox2 Location -7/Factory Parts ------- > --- POWER (4) -------- Nuclear Core Micro Nuclear Core > --- PROPULSION (5) --- Wheel > --- UTILITY (7) ------ Improved Cooling System Force Field > --- WEAPON (6) ------- Magnetic Acceleration Cannon Magnetic Acceleration Cannon Proton Missile Launcher > --- INVENTORY (2) ---- (None) Peak State ------------ > --- POWER ------------ Cooled Ion Engine Cooled Ion Engine Reinforced Deuterium Engine Light Angular Momentum Engine > --- PROPULSION ------- Armored Treads Improved Medium Treads Improved Medium Treads Improved Medium Treads Improved Medium Treads > --- UTILITY ---------- Cryofiber Web Particle Charger Improved Medium Armor Plating Powered Armor Advanced Shield Generator Hacking Suite Hacking Suite > --- WEAPON ----------- Advanced Plasma Cannon Gauss Cannon Magnetic Acceleration Cannon Advanced Datajack Improved Remote Datajack Impact Mace > --- INVENTORY -------- Improved Cooling System Relay Coupler [Behemoth] [Rating: 98] Favorites ----------- Power Light Angular Momentum Engine Engine Light Angular Momentum Engine Power Core Light Nuclear Core Propulsion Improved Medium Treads Treads Improved Medium Treads Leg Improved Carbon-fiber Leg Wheel Wheel Hover Unit Hover Unit Flight Unit Improved VTOL Module Utility Cryofiber Web Device Cryofiber Web Storage Small Matter Pod Processor Advanced Targeting Computer Hackware Hacking Suite Protection Improved Medium Armor Plating Weapon Particle Cannon Energy Gun Lightning Gun Energy Cannon Particle Cannon Ballistic Gun Gauss Rifle Ballistic Cannon Magnetic Acceleration Cannon Launcher Proton Missile Launcher Special Weapon Improved Remote Datajack Impact Weapon Heavy Hammer Slashing Weapon Ripper Special Melee Weapon Improved Datajack Build | -11 -10 -10 -9 -9 -9 -8 -8 -8 -8 -7 -7 -7 ------- Run | Jun Mat Min Mat Sto Gar Mat Gar Mat Gar Fac Was Fac Slots Evolved 18 | 6 . . 4 3 . 2 3 . . . . . Power 3 | 1 . . . 1 . 1 . . . . . . Propulsion 4 | 1 . . . 1 . . 2 . . . . . Utility 6 | 2 . . 3 . . 1 . . . . . . Weapon 5 | 2 . . 1 1 . . 1 . . . . . Parts Attached 199 | 12 5 4 26 9 9 49 30 23 2 16 4 10 Power 25 | 2 . 1 4 2 1 5 2 4 2 . . 2 Engine 17 | 2 . 1 2 2 . 2 2 4 2 . . . Core 8 | . . . 2 . 1 3 . . . . . 2 Reactor . | . . . . . . . . . . . . . Propulsion 47 | 3 . . 2 4 4 23 8 1 . . . 2 Treads 13 | 2 . . 2 1 . 2 5 1 . . . . Leg 17 | 1 . . . . . 13 3 . . . . . Wheel 2 | . . . . . . . . . . . . 2 Hover 14 | . . . . 3 4 7 . . . . . . Flight 1 | . . . . . . 1 . . . . . . Utility 60 | 4 1 3 9 . 2 9 10 8 . 10 1 3 Device 37 | 2 . 2 5 . 1 6 5 7 . 6 . 3 Storage 1 | . . . . . . . . . . 1 . . Processor 9 | 1 . 1 4 . . 1 . . . 2 . . Hackware 3 | . . . . . . . 1 1 . 1 . . Protection 10 | 1 1 . . . 1 2 4 . . . 1 . Artifact . | . . . . . . . . . . . . . Weapon 67 | 3 4 . 11 3 2 12 10 10 . 6 3 3 Energy Gun 18 | 1 1 . 6 2 1 5 . 2 . . . . Energy Cannon 14 | . 3 . 2 . . 2 3 2 . 1 1 . Ballistic Gun 7 | 2 . . 1 . . 2 1 1 . . . . Ballistic Cannon 10 | . . . . . . . 2 4 . 2 . 2 Launcher 4 | . . . 2 . 1 . . . . . . 1 Special Weapon 3 | . . . . . . . 2 1 . . . . Impact Weapon 7 | . . . . 1 . 1 2 . . 2 1 . Slashing Weapon 1 | . . . . . . . . . . 1 . . Piercing Weapon . | . . . . . . . . . . . . . Special Melee Weapon 3 | . . . . . . 2 . . . . 1 . Unidentified Prototypes 10 | . . 1 2 . . 3 . 3 . 1 . . Corrupted Parts 5 | . . . . . . . 4 . . 1 . . System Corruption 11 | . . . . . . . 8 . . 3 . . Parts Lost 11 | . . . . . . . . 1 . . 10 . Power 2 | . . . . . . . . . . . 2 . Propulsion 3 | . . . . . . . . . . . 3 . Utility 2 | . . . . . . . . . . . 2 . Weapon 4 | . . . . . . . . 1 . . 3 . Highest Loss Streak 8 | . . . . . . . . 1 . . 8 . To Critical Strikes . | . . . . . . . . . . . . . Average Slot Usage (%) 96 | . 99 100 99 98 100 99 98 99 100 98 36 16 Engine 14 | . 20 20 8 7 11 13 17 18 18 18 5 . Core 2 | . . . 6 6 5 6 . . . . . . Treads 13 | . 20 20 15 7 . . 17 22 22 22 8 . Leg 2 | . . . . . . 11 3 . . . . . Hover 2 | . . . . 7 17 3 . . . . . . Device 20 | . 14 15 24 25 23 25 21 17 18 15 5 7 Processor 5 | . 10 10 14 12 7 5 4 . . . . . Hackware 1 | . . . . . . . . 3 4 5 3 . Protection 5 | . 5 4 . . 2 4 6 9 9 9 2 . Energy Gun 5 | . 6 10 12 10 10 10 1 . . . . . Energy Cannon 10 | . 21 20 15 12 11 5 6 8 9 8 2 . Ballistic Gun 2 | . 2 . . . . 3 5 4 4 2 . . Ballistic Cannon 1 | . . . . . . . 2 3 4 5 3 5 Special Weapon 1 | . . . . . . . . 4 4 4 . . Impact Weapon 2 | . . . . 4 5 3 3 4 4 4 1 . Naked Turns 225 | . . . . . . . . . . . 124 101 Heaviest Build 108 | 15 22 33 40 48 56 75 108 106 104 107 105 45 Greatest Support 145 | 45 45 45 45 65 32 65 145 145 145 145 145 25 Greatest Overweight (x) 6 | . . . 1 3 2 6 2 . . . . 3 Average Overweight (x) . | . . . . . 1 1 . . . . . 1 Largest Inventory Capacity 2 | 2 2 2 2 2 2 2 2 2 2 2 2 2 Average Capacity 1 | 1 2 2 2 2 2 2 2 2 2 2 2 2 Most Carried 2 | 2 2 2 2 2 2 2 2 2 2 2 2 2 Average Carried 1 | 1 1 1 1 1 1 1 1 1 2 1 1 1 Final Capacity 2 | 2 2 2 2 2 2 2 2 2 2 2 2 2 Final Carried 2 | 2 2 2 2 2 2 2 2 2 2 2 2 . Class Distribution -------------------- 57% | Hacker-Gunner 24% | Hacker-Tank 9% | Scavenger-Gunner 4% | Scavenger-Tank Dominant Class ---------------- Hacker-Gunner | -10/Materials Hacker-Gunner | -10/Mines Hacker-Gunner | -9/Materials Hacker-Gunner | -9/Storage Hacker-Gunner | -9/Garrison Hacker-Gunner | -8/Materials Scavenger-Gunner | -8/Garrison Hacker-Tank | -8/Materials Hacker-Tank | -8/Garrison Hacker-Tank | -7/Factory Hacker-Mutant | -7/Waste Hacker-Mutant | -7/Factory Resources | -11 -10 -10 -9 -9 -9 -8 -8 -8 -8 -7 -7 -7 ----------- Run | Jun Mat Min Mat Sto Gar Mat Gar Mat Gar Fac Was Fac Matter Collected 5337 | 352 69 62 276 95 150 586 1497 1038 580 596 . 36 Remotely . | . . . . . . . . . . . . . Salvage Created 17071 | 170 710 268 1897 1840 1184 2638 2715 2487 1419 1335 396 12 Parts 955 | 13 62 24 133 127 65 128 127 125 91 54 4 2 Haulers Intercepted 24 | . 2 . 6 6 . 5 . 5 . . . . Recyclers Shooed 4 | . 2 . . 2 . . . . . . . . Parts Field Recycled . | . . . . . . . . . . . . . Retrieved Matter . | . . . . . . . . . . . . . Parts Self-Destructed . | . . . . . . . . . . . . . Prevented . | . . . . . . . . . . . . . Kills | -11 -10 -10 -9 -9 -9 -8 -8 -8 -8 -7 -7 -7 ------- Run | Jun Mat Min Mat Sto Gar Mat Gar Mat Gar Fac Was Fac Combat Hostiles Destroyed 255 | . 8 4 31 24 29 29 40 35 33 21 1 . Melee 2 | . . . . . . 1 1 . . . . . Guns 93 | . 2 1 12 9 12 20 29 5 . 3 . . Cannons 143 | . 6 1 19 13 12 7 10 29 32 14 . . AOE 7 | . . 2 . 2 3 . . . . . . . Classes Destroyed 18 | 3 5 . 3 1 1 1 1 . 1 1 1 . Worker 34 | 1 6 1 4 5 . 7 . 7 . 2 . 1 Builder 23 | . 2 . 3 8 . 2 . 7 . 1 . . Tunneler 12 | 3 2 4 1 . . 1 . . . 1 . . Hauler 24 | . 2 . 6 6 . 5 . 5 . . . . Recycler 26 | 1 2 1 2 5 . 5 . 7 . 3 . . Mechanic 1 | . . . . . . . . . . 1 . . Operator 9 | . . . 2 2 . 2 . 1 . 2 . . Watcher 25 | . 3 . 4 2 . 5 3 5 1 2 . . Swarmer 36 | . 6 4 5 . 5 2 3 4 3 4 . . Grunt 110 | . 2 . 16 14 12 16 16 18 13 3 . . Brawler 5 | . . . 1 . . . 1 2 . 1 . . Duelist 2 | . . . . 1 . . . . . 1 . . Sentry 72 | . . . 9 9 8 10 13 10 9 4 . . Specialist 4 | . . . . . . . . . 4 . . . Hunter 7 | . . . . . . 1 1 2 . 3 . . Programmer 14 | . . . . . 3 . 3 . 4 4 . . Behemoth 3 | . . . . . . . 3 . . . . . Compactor 1 | . . . . . . . . . . . 1 . Thug 3 | . . 1 . . 1 . . . . 1 . . Best Kill Streak 8 | 1 3 2 8 6 6 8 7 6 8 3 1 1 Combat Bots Only 8 | . 2 2 7 5 6 4 7 5 8 3 1 . Max Kills in Single Turn 3 | 1 2 2 2 2 3 2 2 2 2 2 1 1 Gunslinging 1 | . 1 . . . . . 1 . . . . . Exploded 2 | . . 2 . 1 1 . . . . . . . Melee 1 | . . . . . . 1 1 . . . . . Uniques/NPCs Destroyed . | . . . . . . . . . . . . . Combat | -11 -10 -10 -9 -9 -9 -8 -8 -8 -8 -7 -7 -7 -------- Run | Jun Mat Min Mat Sto Gar Mat Gar Mat Gar Fac Was Fac Damage Taken 4040 | . 54 38 339 193 396 446 521 380 626 225 309 513 Core 2866 | . 42 29 260 147 285 287 361 236 406 138 269 406 Absorbed by Shields 1421 | . . . 15 85 178 182 369 159 274 93 34 32 Redirected to Core 2458 | . 42 29 218 132 235 260 335 217 374 138 117 361 Regen/Repaired (Parts) 150 | . . . 47 . . 35 . 68 . . . . Core Remaining (%) 95 | 100 . 96 . . 85 . . . 100 . . . Volleys Fired 646 | 16 32 16 76 66 34 74 146 81 51 46 3 5 Largest 4 | 3 3 3 4 4 4 4 4 4 4 4 4 3 Hottest 284 | 80 204 176 226 226 226 246 264 264 264 284 284 145 Shots Fired 2152 | 46 95 49 235 232 128 290 421 301 172 165 9 9 Gun 930 | 46 25 16 94 100 55 175 275 82 41 21 . . Cannon 1195 | . 70 33 139 132 68 115 142 219 121 141 9 6 Launcher 10 | . . . 2 . 5 . . . . . . 3 Special 17 | . . . . . . . 4 . 10 3 . . Kinetic 604 | 32 10 . . . . 24 219 142 81 85 5 6 Thermal 1064 | 14 75 33 139 132 68 140 142 159 81 77 4 . Explosive 7 | . . . 2 . 5 . . . . . . . Electromagnetic 460 | . 10 16 94 100 55 126 56 . . . . 3 Robot Hit Streak 67 | 17 20 20 32 40 43 47 67 57 49 35 21 9 Robot Miss Streak 3 | 1 3 1 3 1 1 1 2 1 1 1 1 . Penetration Max 1 | . . . . . . . 1 1 . . . . Secondary Targets 10 | . 1 . . . . . 9 . . . . . Max Gunslinging Chain 2 | . 1 . . . . . 2 . . . . . Shots Hit Robots 1394 | 35 51 22 153 134 92 178 339 182 93 103 4 8 Core Hits 571 | 10 25 13 71 59 46 78 118 74 36 39 . 2 Critical Kills 14 | . . . 1 . . 1 2 3 1 5 1 . Critical Parts Destroyed 9 | . . . . 3 3 1 1 1 . . . . Critical Strikes 38 | . . . 2 4 5 3 8 7 1 7 1 . Burn 2 | . . . . . . . 2 . . . . . Meltdown 12 | . . . 1 . . 1 1 2 1 5 1 . Destroy 2 | . . . . . . . 1 1 . . . . Blast 7 | . . . . . . . 2 3 . 2 . . Corrupt 6 | . . . 1 1 2 1 1 . . . . . Smash 9 | . . . . 3 3 1 1 1 . . . . Melee Attacks 177 | . . . . 34 18 21 58 8 34 3 1 . Impact 167 | . . . . 34 18 11 58 8 34 3 1 . Slashing . | . . . . . . . . . . . . . Piercing . | . . . . . . . . . . . . . Sneak Attacks 25 | . . . . 7 1 10 1 3 1 2 . . Combat Hostiles 1 | . . . . . . . . . 1 . . . Follow-up Attacks . | . . . . . . . . . . . . . Damage Inflicted 34476 | 317 950 414 3069 2992 2527 3992 7640 5792 3228 3270 170 115 Guns 11743 | 317 232 140 1127 1121 685 2565 4207 852 324 173 . . Cannons 18739 | . 675 203 1587 1060 800 967 3264 4574 2630 2830 98 51 Explosions 1500 | . 43 71 337 289 431 162 . 103 . . . 64 Melee 2408 | . . . . 522 611 298 135 263 246 261 72 . Ramming 86 | . . . 18 . . . 34 . 28 6 . . Kinetic 6523 | 172 62 . . . . 156 2875 1421 780 980 26 51 Thermal 18656 | 145 772 274 1791 1349 997 1370 3581 4108 2174 2023 72 . Explosive 391 | . . . 133 . 234 24 . . . . . . Electromagnetic 6412 | . 116 140 1127 1121 685 2144 1015 . . . . 64 Impact 2408 | . . . . 522 611 298 135 263 246 261 72 . Slashing . | . . . . . . . . . . . . . Piercing . | . . . . . . . . . . . . . Highest Corruption 8 | . 1 1 . 1 1 . 8 5 7 3 3 4 Average Corruption 3 | . 1 1 . 1 1 . 3 5 6 2 3 3 Corruption Purged 7 | . . . . . . . 5 . . 2 . . Corruption Blocked . | . . . . . . . . . . . . . Effects 222 | . 3 9 . 3 10 . 60 66 44 12 4 11 Message Errors 52 | . 1 2 . . 2 . 12 11 13 4 1 6 Matter Fused 62 | . 1 3 . 1 1 . 18 19 14 1 . 4 Heat Flow Errors 24 | . . . . . 1 . 8 8 4 2 1 . Energy Discharges 21 | . . . . 1 3 . 2 10 3 1 1 . Parts Rejected 1 | . . . . . . . . . . . . 1 Parts Fused 1 | . . . . . . . . 1 . . . . Data Loss (minor) 29 | . . 1 . 1 2 . 8 9 6 2 . . Data Loss (major) 13 | . . 2 . . 1 . 5 2 1 1 1 . Misfires 8 | . . 1 . . . . 3 3 . 1 . . Alerts 3 | . . . . . . . 2 . 1 . . . Weapon Failures 8 | . 1 . . . . . 2 3 2 . . . Overload Shots . | . . . . . . . . . . . . . Overflow Damage 1710 | . 16 3 20 362 204 196 158 392 231 128 . . Projectiles 590 | . 16 3 20 7 1 47 94 194 152 56 . . Explosions 51 | . . . . 10 26 15 . . . . . . Melee 1069 | . . . . 345 177 134 64 198 79 72 . . Knockbacks 25 | . . . . 3 2 2 2 5 6 5 . . Impact 10 | . . . . 3 1 2 . 1 1 2 . . Kinetic 12 | . . . . . . . 1 4 4 3 . . Secondary 3 | . . . . . 1 . 1 . 1 . . . Self-Inflicted Damage 319 | . . 24 14 . 35 131 28 59 28 . . . Shots 7 | . . 1 1 . 1 3 . 1 . . . . Rammed 4 | . . . 2 . . . 1 . . 1 . . Targets Rammed 4 | . . . 2 . . . 1 . . 1 . . Kicked . | . . . . . . . . . . . . . Crushed . | . . . . . . . . . . . . . Highest Temperature 511 | 20 282 162 348 14 87 337 511 178 99 415 59 . Average Temperature 96 | 11 85 62 143 14 29 80 140 35 59 133 32 . Received Heat Transfer 1614 | . . . 165 126 196 304 180 308 271 64 . . Effects 9 | . . . 1 . . . 8 . . . . . Shutdowns 1 | . . . 1 . . . . . . . . . Energy Bleed 1 | . . . . . . . 1 . . . . . Interference 2 | . . . . . . . 2 . . . . . Matter Decay 1 | . . . . . . . 1 . . . . . Damage (minor) 1 | . . . . . . . 1 . . . . . Damage (major) 3 | . . . . . . . 3 . . . . . Siege Activations . | . . . . . . . . . . . . . Robots Corrupted . | . . . . . . . . . . . . . Combat Hostiles . | . . . . . . . . . . . . . Parts Fried 44 | . . . 1 12 4 19 5 2 1 . . . Impact Corruptions 40 | . . . . 13 6 5 2 7 3 4 . . Robots Melted 12 | . . . 1 . . 1 1 2 1 5 1 . Combat Hostiles 8 | . . . . . . 1 . 1 1 4 1 . Parts Melted 47 | . 4 . 6 1 3 4 4 8 4 11 2 . Heat Transferred 25755 | 325 1446 470 3199 2374 1530 2296 4349 4868 2475 2336 87 . Parts Sabotaged . | . . . . . . . . . . . . . Parts Stolen . | . . . . . . . . . . . . . Parts Stripped . | . . . . . . . . . . . . . Power Chain Reactions 24 | . 2 1 5 8 2 6 . . . . . . Missiles Intercepted . | . . . . . . . . . . . . . Alert | -11 -10 -10 -9 -9 -9 -8 -8 -8 -8 -7 -7 -7 ------- Run | Jun Mat Min Mat Sto Gar Mat Gar Mat Gar Fac Was Fac Peak Influence 2049 | 25 224 87 377 542 1052 596 2049 869 831 334 14 11 Initial 732 | . 12 4 . 12 . 375 . 732 . 324 12 6 Average 349 | 11 55 20 132 213 523 144 910 503 462 127 9 6 Maximum Alert Level 5 | . 1 . 1 2 3 2 5 3 3 1 . . Low Security (%) 49 | 100 98 100 67 47 20 72 10 14 22 72 100 100 Level 1 15 | . 1 . 32 34 16 17 4 15 17 27 . . Level 2 18 | . . . . 18 33 10 28 51 30 . . . Level 3 9 | . . . . . 29 . 20 18 29 . . . Level 4 3 | . . . . . . . 19 . . . . . Level 5 2 | . . . . . . . 16 . . . . . High Security . | . . . . . . . . . . . . . Max Security . | . . . . . . . . . . . . . Squads Dispatched 32 | . 2 . 5 4 . 3 . 8 . 8 . 2 Investigation 21 | . 2 . 2 3 . 3 . 7 . 3 . 1 Extermination 5 | . . . . . . . . . . 4 . 1 Reinforcement 6 | . . . 3 1 . . . 1 . 1 . . Assault . | . . . . . . . . . . . . . Garrison . | . . . . . . . . . . . . . Intercept . | . . . . . . . . . . . . . Searches Triggered . | . . . . . . . . . . . . . Construction Impeded 1 | . . . . . . . . 1 . . . . Haulers Reinforced . | . . . . . . . . . . . . . Active Scanning Responses . | . . . . . . . . . . . . . Cargo Convoy Interrupts . | . . . . . . . . . . . . . Stealth | -11 -10 -10 -9 -9 -9 -8 -8 -8 -8 -7 -7 -7 --------- Run | Jun Mat Min Mat Sto Gar Mat Gar Mat Gar Fac Was Fac Distress Signals 7 | . 2 . 1 1 . 1 1 1 . . . . Communications Jammed . | . . . . . . . . . . . . . Distress Signals . | . . . . . . . . . . . . . Times Spotted 299 | . 12 4 39 27 36 33 41 41 35 23 5 3 Peak Tracking Total 8 | . 2 2 4 4 6 4 5 3 8 2 5 3 Tactical Retreats 5 | . . . 1 . . . 3 . . 1 . . Traps | -11 -10 -10 -9 -9 -9 -8 -8 -8 -8 -7 -7 -7 ------- Run | Jun Mat Min Mat Sto Gar Mat Gar Mat Gar Fac Was Fac Traps Triggered 24 | . 2 . 3 3 1 . 10 . 2 3 . . Indirectly . | . . . . . . . . . . . . . Trap Hack Attempts . | . . . . . . . . . . . . . Triggered . | . . . . . . . . . . . . . Disarmed 23 | . . . . 12 . 6 . 5 . . . . Reprogrammed 6 | . . . . 6 . . . . . . . . Reused 1 | . . . . 1 . . . . . . . . Traps Extracted . | . . . . . . . . . . . . . Installed . | . . . . . . . . . . . . . Triggered 2 | . . . . 1 . . 1 . . . . . Machines | -11 -10 -10 -9 -9 -9 -8 -8 -8 -8 -7 -7 -7 ---------- Run | Jun Mat Min Mat Sto Gar Mat Gar Mat Gar Fac Was Fac Machines Disabled 49 | . 2 3 4 1 7 10 4 12 2 4 . . Max in Single Turn 2 | . 1 1 1 1 2 2 1 2 1 2 . . Garrison Relay 10 | . . . . . 5 . 4 . 1 . . . Phase Generator 1 | . . . . . 1 . . . . . . . Machines Repaired . | . . . . . . . . . . . . . Machines Sabotaged . | . . . . . . . . . . . . . Overloaded Fab Kills . | . . . . . . . . . . . . . Hacking | -11 -10 -10 -9 -9 -9 -8 -8 -8 -8 -7 -7 -7 --------- Run | Jun Mat Min Mat Sto Gar Mat Gar Mat Gar Fac Was Fac Machines Accessed 84 | . 9 2 13 13 4 15 3 13 4 7 . 1 Terminals 60 | . 7 1 8 10 4 10 3 9 4 4 . . Fabricators 3 | . . . . . . . . . . 2 . 1 Repair Stations 3 | . . . 1 . . 1 . 1 . . . . Recycling Units 10 | . 2 . 2 2 . 2 . 1 . 1 . . Scanalyzers 4 | . . . 2 . . 1 . 1 . . . . Garrison Access 3 | . . . . 1 . 1 . 1 . . . . Total Hacks 322 | . 32 2 59 55 5 65 3 61 5 30 . 5 Successful 234 | . 22 2 39 34 4 49 3 48 4 24 . 5 Failed 88 | . 10 . 20 21 1 16 . 13 1 6 . . Catastrophic 6 | . 3 . 2 1 . . . . . . . . Database Lockouts . | . . . . . . . . . . . . . Manual 3 | . . 1 . . . . . . . 2 . . Terminals 242 | . 29 1 36 49 5 50 3 43 5 21 . . Fabricators 13 | . . . . . . . . . . 8 . 5 Repair Stations 20 | . . . 11 . . 5 . 4 . . . . Recycling Units 21 | . 3 . 6 3 . 4 . 4 . 1 . . Scanalyzers 18 | . . . 6 . . 4 . 8 . . . . Garrison Access 7 | . . . . 3 . 2 . 2 . . . . Terminal Hacks 161 | . 20 2 18 30 4 34 3 30 4 16 . . Record 35 | . 8 . 4 4 . 10 . 4 . 5 . . Part Schematic 4 | . . . . 4 . . . . . . . . Robot Schematic 1 | . . . . 1 . . . . . . . . Robot Analysis 6 | . . . . 2 . 4 . . . . . . Prototype ID Bank 11 | . 2 . 1 3 . 2 . 1 . 2 . . Open Door 5 | . . 1 . 2 1 . . . 1 . . . Open DSF 1 | . . . . . . . . . . 1 . . Level Access Points 1 | . 1 . . . . . . . . . . . Branch Access Points 4 | . . . 1 1 . 1 . . . 1 . . Emergency Access Points 10 | . 2 . 1 . 1 . 1 3 1 1 . . Terminal Index 2 | . . . . 1 . 1 . . . . . . Repair Station Index 1 | . . . 1 . . . . . . . . . Recycling Unit Index 1 | . . . . . . 1 . . . . . . Scanalyzer Index 2 | . . . . 1 . . . . . 1 . . Alert Level 8 | . 1 . 1 1 . 1 . 2 . 2 . . Unreport Threat 1 | . . . . . . . . . . 1 . . Locate Traps 9 | . 1 . 1 2 . 1 . 4 . . . . Disarm Traps 7 | . . . . 2 . 1 . 4 . . . . Reprogram Traps 1 | . . . . 1 . . . . . . . . Dispatch Records 6 | . 1 . 1 1 . . . 3 . . . . Maintenance Status 4 | . 1 . . 1 . 1 . . . 1 . . Security Status 2 | . . . . . . 1 . 1 . . . . Surveillance Status 3 | . 1 . . . . 2 . . . . . . Patrol Status 5 | . 1 . 2 . . . . 2 . . . . Transport Status 2 | . . . 1 . . . . 1 . . . . Investigation Status 3 | . . . . . . 1 . 2 . . . . Extermination Status 1 | . . . . . . . . . . 1 . . Reinforcement Status 1 | . . . . . . 1 . . . . . . Assault Status 1 | . . . 1 . . . . . . . . . Hauler Manifests 6 | . . . 3 . . 1 . 2 . . . . Registered Components 4 | . 1 . . 1 . 1 . 1 . . . . Registered Prototypes 2 | . . . . 1 . 1 . . . . . . Zone Layout 5 | . . 1 . 1 . 3 . . . . . . Garrison Registry 2 | . . . . . 1 . . . 1 . . . Patrol Navigation 3 | . . . . . 1 . 1 . 1 . . . Security Stations 1 | . . . . . . . 1 . . . . . Fabricator Hacks 11 | . . . . . . . . . . 6 . 5 Network Status 1 | . . . . . . . . . . . . 1 Load Schematic 5 | . . . . . . . . . . 3 . 2 Build 5 | . . . . . . . . . . 3 . 2 Repair Station Hacks 18 | . . . 9 . . 5 . 4 . . . . Scan Component 9 | . . . 4 . . 3 . 2 . . . . Repair 8 | . . . 4 . . 2 . 2 . . . . Refit 1 | . . . 1 . . . . . . . . . Recycling Unit Hacks 19 | . 2 . 6 2 . 4 . 4 . 1 . . Recycle Component 1 | . . . 1 . . . . . . . . . Process 3 | . . . 1 . . . . 2 . . . . Report Inventory 5 | . . . 2 1 . 1 . 1 . . . . Retrieve Matter 3 | . . . 1 . . 1 . 1 . . . . Retrieve Components 7 | . 2 . 1 1 . 2 . . . 1 . . Scanalyzer 18 | . . . 6 . . 4 . 8 . . . . Insert Component 7 | . . . 3 . . 2 . 2 . . . . Analyze 11 | . . . 3 . . 2 . 6 . . . . Garrison Access Hacks 6 | . . . . 2 . 2 . 2 . . . . Unlock Access 3 | . . . . 1 . 1 . 1 . . . . Coupler Status 3 | . . . . 1 . 1 . 1 . . . . Unauthorized Hacks 1 | . . . . . . . . . . 1 . . Terminals 1 | . . . . . . . . . . 1 . . Botnet 1 | . . . . . . . . . . 1 . . Fabricators . | . . . . . . . . . . . . . Repair Stations . | . . . . . . . . . . . . . Recycling Units . | . . . . . . . . . . . . . Scanalyzers . | . . . . . . . . . . . . . Garrison Access . | . . . . . . . . . . . . . Data Cores Recovered 3 | . . . . 1 . . . 1 . 1 . . Used . | . . . . . . . . . . . . . Hacking Detections 54 | . 8 . 10 8 2 7 2 9 1 6 . 1 Full Trace Events 31 | . 5 . 5 5 . 5 . 7 . 3 . 1 Feedback Events 2 | . . . . 1 . . . . . 1 . . Corruption 2 | . . . . 1 . . . . . 1 . . Feedback Blocked . | . . . . . . . . . . . . . Robot Schematics Acquired 1 | . . . . 1 . . . . . . . . Robots Built 2 | . . . . . . . . . . 2 . . Authchips . | . . . . . . . . . . . . . Time 121 | . . . . . . . . . . 121 . . Total Robot Build Rating 2 | . . . . . . . . . . 2 . . Part Schematics Acquired 11 | . . . 3 4 . 2 . 2 . . . . Parts Built 6 | . . . . . . . . . . 2 . 4 Authchips . | . . . . . . . . . . . . . Time 274 | . . . . . . . . . . 84 . 190 Total Part Build Rating 28 | . . . . . . . . . . 8 . 20 Parts Repaired 8 | . . . 4 . . 2 . 2 . . . . Time 358 | . . . 171 . . 64 . 123 . . . . Parts Recycled 1 | . . . 1 . . . . . . . . . Recycled Matter 208 | . . . . . . . . 208 . . . . Retrieved Matter 419 | . . . . . . . . 419 . . . . Retrieved Components 41 | . 18 . . 10 . 10 . . . 3 . . Parts Scanalyzed 7 | . . . 3 . . 2 . 2 . . . . Part Schematics Acquired 7 | . . . 3 . . 2 . 2 . . . . Parts Damaged . | . . . . . . . . . . . . . Bothacking | -11 -10 -10 -9 -9 -9 -8 -8 -8 -8 -7 -7 -7 ------------ Run | Jun Mat Min Mat Sto Gar Mat Gar Mat Gar Fac Was Fac Used RIF Installer 6 | . . . . . 2 . 2 . 2 . . . Coupler Efficiency 1 | . . . . . . . . . 1 . . . Hotswap 1 | . . . . . . . . . 1 . . . Command Fork 1 | . . . . . . . 1 . . . . . Threat Obfuscator 1 | . . . . . 1 . . . . . . . Patrol Navigation 1 | . . . . . . . 1 . . . . . Robots Hacked 7 | . . . . . . 4 1 . . 2 . . Non-combat 3 | . . . . . . 2 . . . 1 . . Combat 4 | . . . . . . 2 1 . . 1 . . Robot Hacks Applied 11 | . . . . . . 8 1 . . 2 . . parse_system 9 | . . . . . . 6 1 . . 2 . . ignore_repairs 2 | . . . . . . 2 . . . . . . Relay Couplers Released 20 | . . . . . 8 . 8 . 4 . . . Machine Destruction 18 | . . . . . 8 . 8 . 2 . . . Programmers 2 | . . . . . . . . . 2 . . . Attached 1 | . . . . . . . 1 . . . . . Fabnet Peak Effective % . | . . . . . . . . . . . . . Robots Rewired 5 | . . . . . . . 3 . 2 . . . Allies Hacked . | . . . . . . . . . . . . . Hacks Repelled . | . . . . . . . . . . . . . Allies | -11 -10 -10 -9 -9 -9 -8 -8 -8 -8 -7 -7 -7 -------- Run | Jun Mat Min Mat Sto Gar Mat Gar Mat Gar Fac Was Fac Total Allies 11 | . . . . . 2 . 5 . 2 2 . . Largest Group 3 | . . . . . 1 . 3 1 2 3 . . Highest-Rated Group 63 | . . . . . 15 . 63 21 50 57 . . Highest-Rated Ally 25 | . . . . . 15 . 21 21 25 25 . . Total Orders 16 | . . 6 . . 1 . . . . 9 . . STAY 2 | . . . . . . . . . . 2 . . FOLLOW 3 | . . . . . . . . . . 3 . . PICKUP 3 | . . . . . . . . . . 3 . . COLLECT 1 | . . . . . . . . . . 1 . . RETURN 7 | . . 6 . . 1 . . . . . . . Ally Attacks 40 | . . . . . 11 . 15 11 3 . . . Total Damage 571 | . . . . . 64 . 191 235 81 . . . Kills 6 | . . . . . 1 . 2 1 2 . . . Allies Corrupted 1 | . . . . . . . 1 . . . . . Allies Melted . | . . . . . . . . . . . . . Intel | -11 -10 -10 -9 -9 -9 -8 -8 -8 -8 -7 -7 -7 ------- Run | Jun Mat Min Mat Sto Gar Mat Gar Mat Gar Fac Was Fac Robot Analysis Total 6 | . . . . 2 . 4 . . . . . . Derelict Logs Recovered 1 | . . 1 . . . . . . . . . . Drone Launches 22 | . . 6 . . 11 . 5 . . . . . Drone Recoveries 20 | . . 6 . . 10 . 4 . . . . . Exploration | -11 -10 -10 -9 -9 -9 -8 -8 -8 -8 -7 -7 -7 ------------- Run | Jun Mat Min Mat Sto Gar Mat Gar Mat Gar Fac Was Fac Turns Passed 22818 | 314 1333 1304 2365 1724 1723 3596 3751 2809 1539 1671 230 459 Spaces Moved 11752 | 163 762 777 1172 850 983 1653 1892 1424 770 830 296 180 Core 316 | 8 . . . . . . . . . . 242 66 Treads 7978 | 149 762 777 1172 403 . 2 1635 1424 770 830 54 . Legs 1570 | 6 . . . . . 1307 257 . . . . . Wheels 114 | . . . . . . . . . . . . 114 Hover 1771 | . . . . 447 983 341 . . . . . . Flight 3 | . . . . . . 3 . . . . . . Fastest Speed 50 | 50 160 160 160 112 112 112 120 160 162 162 50 50 Average Speed 161 | 153 160 160 160 154 155 187 161 161 162 162 70 126 Slowest Speed 455 | 160 160 160 240 280 176 455 320 162 162 162 165 200 Overloaded Moves . | . . . . . . . . . . . . . Propulsion Burnouts . | . . . . . . . . . . . . . Robots Hopped . | . . . . . . . . . . . . . Cave-ins Triggered . | . . . . . . . . . . . . . Exploration Rate (%) 74 | 8 91 98 91 88 99 96 99 98 90 15 86 3 Regions Visited 12 Branch Regions 2 Pre-discovered Areas 2 | . . 2 . . . . . . . . . . Known Exits Taken 7 | 1 1 1 1 1 . 1 . 1 . . . . Unknown Exits Taken . | . . . . . . . . . . . . . Scrap Searched 2 | . . 2 . . . . . . . . . . Spaces Dug 42 | . . . . 8 . 5 8 5 9 7 . . Terrain Destroyed 478 | . 5 4 32 34 114 62 21 112 25 63 5 1 Melee 32 | . . . . 8 . 5 8 3 8 . . . Projectile 132 | . . 1 . . 1 4 13 62 17 28 5 1 AOE 314 | . 5 3 32 26 113 53 . 47 . 35 . . Terrain Rammed 2 | . . . . . . . 1 . 1 . . . Walls Destroyed 2 | . . . . . . . 1 . 1 . . . Machines Disabled . | . . . . . . . . . . . . . Actions | -11 -10 -10 -9 -9 -9 -8 -8 -8 -8 -7 -7 -7 --------- Run | Jun Mat Min Mat Sto Gar Mat Gar Mat Gar Fac Was Fac Total 13940 | 193 805 802 1488 1043 1065 1950 2222 1719 897 1049 307 400 Wait 750 | . . . 171 44 . 78 9 130 3 115 . 200 Move 11742 | 162 761 776 1171 849 982 1652 1891 1424 769 830 295 180 Hop . | . . . . . . . . . . . . . Pick Up 49 | 3 1 1 12 2 3 4 7 1 . 10 1 4 Fast Attach 117 | 9 3 2 9 3 3 36 18 19 1 6 4 4 Attach 30 | 1 . . 8 2 1 1 4 1 . 6 . 6 Detach 2 | . . . 1 . . . . 1 . . . . Swap 53 | 2 2 2 9 4 5 12 8 4 1 4 . . Drop 138 | . 4 4 12 3 8 45 20 20 2 16 3 1 Fire 646 | 16 32 16 76 66 34 74 146 81 51 46 3 5 Melee 177 | . . . . 34 18 21 58 8 34 3 1 . Ram 2 | . . . . . . . 1 . 1 . . . Kick . | . . . . . . . . . . . . . Crush 4 | . . . 2 . . . 1 . . 1 . . Escape Stasis 31 | . . . . 26 . . 5 . . . . . Rewire 6 | . . . . . . . 3 . 3 . . . Trap . | . . . . . . . . . . . . . Miscellaneous 193 | . 2 1 17 10 11 27 51 30 32 12 . . Route ------- -11/Junkyard -10/Materials (discovered 5 exits: *Mat x3 / *Min x2) -10/Mines (discovered 2 exits: *Mat x2) -9/Materials (discovered 7 exits: *Mat x3 / *Min x2 / *Sto x2) -9/Storage (discovered 3 exits: *Mat / Rec / Gar) -9/Garrison (discovered 3 exits: *Mat x3) -8/Materials (discovered 4 exits: *Fac x3 / Gar) -8/Garrison (discovered 3 exits: *Mat x3) -8/Materials (discovered 4 exits: *Fac x3 / Gar) -8/Garrison (discovered 3 exits: *Fac x3) -7/Factory (discovered 2 exits: *Low x2) -7/Waste -7/Factory History --------- Turn | Location | Event 3 | -11/Junkyard | Identified exit to Materials 3 | -11/Junkyard | Discovered exit to Materials (range 16) 8 | -11/Junkyard | Upgraded with Power slot (x1) 8 | -11/Junkyard | Upgraded with Propulsion slot (x1) 8 | -11/Junkyard | Upgraded with Utility slot (x2) 8 | -11/Junkyard | Upgraded with Weapon slot (x2) 315 | -11/Junkyard | Entered Materials 316 | -10/Materials | Build established: Hacker-Gunner 548 | -10/Materials | Identified exit to Materials 548 | -10/Materials | Discovered exit to Materials (range 3) 698 | -10/Materials | Identified exit to Mines 698 | -10/Materials | Discovered exit to Mines (range 11) 940 | -10/Materials | Discovered exit to Mines (range 6) 1648 | -10/Materials | Entered Mines 1650 | -10/Mines | Reached level 2 1653 | -10/Mines | Met a Derelict bent on vengeance 1958 | -10/Mines | Discovered exit to Materials (range 12) 2216 | -10/Mines | Discovered exit to Materials (range 5) 2220 | -10/Mines | Found the Drone Emporium 2228 | -10/Mines | Found Prototype Device 2229 | -10/Mines | Identified Splice Drone Bay 2428 | -10/Mines | Learned location of Storage (-9) 2952 | -10/Mines | Entered Materials 2954 | -9/Materials | Reached level 3 2954 | -9/Materials | Reached level 4 3260 | -9/Materials | Upgraded with Utility slot (x2) 3416 | -9/Materials | Identified exit to Mines 3416 | -9/Materials | Identified exit to Storage 3438 | -9/Materials | Reached level 5 3614 | -9/Materials | Upgraded with Weapon slot (x1) 3884 | -9/Materials | Reached level 6 4128 | -9/Materials | Identified exit to Materials 4128 | -9/Materials | Discovered exit to Materials (range 16) 4279 | -9/Materials | Discovered exit to Materials (range 17) 4488 | -9/Materials | Upgraded with Utility slot (x1) 4815 | -9/Materials | Reached level 7 4846 | -9/Materials | Destroyed 7 combat bots 4996 | -9/Materials | Repaired Hvy. EM Pulse Gun 5048 | -9/Materials | Repaired Lgt. Angular Momentum Engine 5087 | -9/Materials | Repaired Lgt. Nuclear Core 5141 | -9/Materials | Repaired Imp. EM Shotgun 5258 | -9/Materials | Discovered exit to Materials (range 4) 5317 | -9/Materials | Entered Storage 5340 | -9/Storage | Identified exit to Recycling 5361 | -9/Storage | Reached level 8 5722 | -9/Storage | Reached level 9 5915 | -9/Storage | Discovered exit to Materials (range 17) 6200 | -9/Storage | Upgraded with Power slot (x1) 6200 | -9/Storage | Upgraded with Propulsion slot (x1) 6200 | -9/Storage | Upgraded with Weapon slot (x1) 6331 | -9/Storage | Identified exit to Garrison 7041 | -9/Storage | Entered Garrison 7076 | -9/Garrison | Installed Relay Interface Framework 7144 | -9/Garrison | Triggered checkpoint 7287 | -9/Garrison | Garrison Relay disabled 7401 | -9/Garrison | Phase Generator disabled 7401 | -9/Garrison | Reached level 10 7632 | -9/Garrison | Triggered checkpoint 7720 | -9/Garrison | Triggered checkpoint 7730 | -9/Garrison | Triggered checkpoint 7746 | -9/Garrison | Triggered checkpoint 7822 | -9/Garrison | Expanded RIF knowledge: Threat Obfuscation 8002 | -9/Garrison | Triggered checkpoint 8024 | -9/Garrison | Discovered exit to Materials (range 11) 8250 | -9/Garrison | Triggered checkpoint 8303 | -9/Garrison | Garrison Relay disabled 8341 | -9/Garrison | Discovered exit to Materials (range 47) 8341 | -9/Garrison | Discovered exit to Materials (range 27) 8341 | -9/Garrison | Discovered exit to Materials (range 58) 8560 | -9/Garrison | Triggered checkpoint 8582 | -9/Garrison | Garrison Relay disabled 8693 | -9/Garrison | Garrison Relay disabled 8711 | -9/Garrison | Garrison Relay disabled 8764 | -9/Garrison | Entered Materials 8766 | -8/Materials | Reached level 11 8767 | -8/Materials | Upgraded with Power slot (x1) 8767 | -8/Materials | Upgraded with Utility slot (x1) 8929 | -8/Materials | Reached level 12 9136 | -8/Materials | Identified exit to Garrison 9949 | -8/Materials | Identified exit to Factory 9949 | -8/Materials | Discovered exit to Factory (range 17) 10993 | -8/Materials | Repaired Shield Generator 11045 | -8/Materials | Repaired Particle Cannon 11104 | -8/Materials | Discovered exit to Factory (range 7) 11679 | -8/Materials | Discovered exit to Factory (range 17) 12360 | -8/Materials | Entered Garrison 12362 | -8/Garrison | Reached level 13 12604 | -8/Garrison | Triggered checkpoint 12607 | -8/Garrison | Garrison Relay disabled 12708 | -8/Garrison | Upgraded with Propulsion slot (x2) 12785 | -8/Garrison | Destroyed 7 combat bots 12786 | -8/Garrison | Triggered checkpoint 12798 | -8/Garrison | Triggered checkpoint 12851 | -8/Garrison | Spotted B-75 Beast 12904 | -8/Garrison | Destroyed B-75 Beast 12912 | -8/Garrison | Spotted B-75 Beast 12956 | -8/Garrison | Destroyed B-75 Beast 12962 | -8/Garrison | Identified exit to Materials 12962 | -8/Garrison | Discovered exit to Materials (range 12) 13298 | -8/Garrison | Triggered checkpoint 13347 | -8/Garrison | Garrison Relay disabled 13442 | -8/Garrison | Build established: Scavenger-Gunner 13837 | -8/Garrison | Found Powered Armor 14064 | -8/Garrison | Triggered checkpoint 14177 | -8/Garrison | Discovered exit to Materials (range 15) 14648 | -8/Garrison | Build established: Scavenger-Tank 14904 | -8/Garrison | Expanded RIF knowledge: Command Fork 15135 | -8/Garrison | Spotted B-75 Beast 15188 | -8/Garrison | Destroyed B-75 Beast 15396 | -8/Garrison | Expanded RIF knowledge: Patrol Navigation 15479 | -8/Garrison | Discovered exit to Materials (range 10) 15512 | -8/Garrison | Triggered checkpoint 15526 | -8/Garrison | Reached level 14 15561 | -8/Garrison | Garrison Relay disabled 15632 | -8/Garrison | Learned Materials security intel 15756 | -8/Garrison | Build established: Scavenger-Gunner 16009 | -8/Garrison | Upgraded with Weapon slot (x1) 16042 | -8/Garrison | Garrison Relay disabled 16111 | -8/Garrison | Entered Materials 16111 | -8/Materials | Accompanied by 1 ally 16426 | -8/Materials | Build established: Scavenger-Tank 16711 | -8/Materials | Repaired Broken Magnetic Acceleration Cannon 16765 | -8/Materials | Repaired Broken Cryofiber Web 16786 | -8/Materials | Build established: Hacker-Tank 17166 | -8/Materials | Discovered exit to Factory (range 11) 17624 | -8/Materials | Discovered exit to Factory (range 13) 18174 | -8/Materials | Discovered exit to Factory (range 13) 18920 | -8/Materials | Identified exit to Garrison 18920 | -8/Materials | Entered Garrison 19150 | -8/Garrison | Triggered checkpoint 19231 | -8/Garrison | Triggered checkpoint 19232 | -8/Garrison | Triggered checkpoint 19300 | -8/Garrison | Destroyed 8 combat bots 19384 | -8/Garrison | Triggered checkpoint 19485 | -8/Garrison | Discovered exit to Factory (range 10) 19502 | -8/Garrison | Triggered checkpoint 19557 | -8/Garrison | Discovered exit to Factory (range 67) 19557 | -8/Garrison | Discovered exit to Factory (range 6) 19557 | -8/Garrison | Discovered exit to Factory (range 43) 19646 | -8/Garrison | Triggered checkpoint 19855 | -8/Garrison | Reached level 15 19942 | -8/Garrison | Triggered checkpoint 19968 | -8/Garrison | Garrison Relay disabled 20190 | -8/Garrison | Expanded RIF knowledge: Hotswap 20340 | -8/Garrison | Triggered checkpoint 20381 | -8/Garrison | Expanded RIF knowledge: Coupler Efficiency 20459 | -8/Garrison | Entered Factory 20459 | -7/Factory | Accompanied by 2 allies 20568 | -7/Factory | Fabricated R-06 Scavenger (x1) 21074 | -7/Factory | Fabricated System Restoration Module (x2) 21456 | -7/Factory | Fabricated R-06 Scavenger (x1) 21517 | -7/Factory | P-60 Hacker assimilated allied ZR-LPX(g) 21628 | -7/Factory | Reached level 16 21801 | -7/Factory | Identified exit to Lower Caves 22130 | -7/Factory | Sucked down chute 22130 | -7/Factory | Entered Waste 22164 | -7/Waste | Spotted C-40 Crusher 22169 | -7/Waste | Destroyed C-40 Crusher 22174 | -7/Waste | Spotted C-40 Crusher 22174 | -7/Waste | Spotted C-40 Crusher 22182 | -7/Waste | Crushed by Compactor (1 part destroyed, 2 dropped) 22186 | -7/Waste | Crushed by Compactor (1 part destroyed, 2 dropped) 22187 | -7/Waste | Spotted C-40 Crusher 22214 | -7/Waste | Spotted C-40 Crusher 22224 | -7/Waste | Crushed by Compactor (1 part destroyed, 1 dropped) 22227 | -7/Waste | Crushed by Compactor (1 part destroyed, 1 dropped) 22229 | -7/Waste | Crushed by Compactor (1 part destroyed, 1 dropped) 22230 | -7/Waste | Crushed by Compactor (1 part destroyed, 2 dropped) 22232 | -7/Waste | Crushed by Compactor (1 part destroyed, 2 dropped) 22233 | -7/Waste | Crushed by Compactor (1 part destroyed, 2 dropped) 22235 | -7/Waste | Spotted C-40 Crusher 22235 | -7/Waste | Crushed by Compactor (1 part destroyed, 1 dropped) 22238 | -7/Waste | Crushed by Compactor (1 part destroyed) 22264 | -7/Waste | Identified exit to Factory 22264 | -7/Waste | Discovered exit to Factory (range 17) 22269 | -7/Waste | Lost 8 parts (1p3n1u3w) 22360 | -7/Waste | Entered Factory 22461 | -7/Factory | Fabricated Force Field (x2) 22522 | -7/Factory | Build established: Hacker-Mutant 22560 | -7/Factory | Fabricated Magnetic Acceleration Cannon (x2) 22713 | -7/Factory | Core integrity fell below 50% 22786 | -7/Factory | Core integrity fell below 20% 22819 | -7/Factory | Destroyed by P-60 Hacker with Shock Rifle Last Messages --------------- 22715_ Penetrated by Slug. 22715_ Slug penetrates Wall. 22719_ Penetrated by Slug. 22723_ Slug penetrates Wall. 22725_ Penetrated by Slug. 22727_ System corrupted: Wheel rejected. 22755_ C|0W3&EL27UHX|JGEHERSPZLUX,FTKNKCT 22764_ P-60 Hacker resets H-55 Commando, system corruption cleaned. 22768_ Slug penetrates Wall. 22773_ IBU|ARL0:WPU/XO#ZO30BK 22792_ Acquired Unknown Power Core. 22794_ Acquired Mic. Nuclear Core. 22795_ Slug penetrates Nuclear Reactor. 22801_ Penetrated by Slug. 22802_ Slug penetrates Wall. 22804_ Nuclear Reactor explodes. 22804_ H-55 Commando destroyed. 22805_ The unstable cave ceiling collapses. 22813_ Acquired 19 matter. 22817_ Identified Nuclear Core. Map ----- +----------------------------------------------------+ | ??????????????????????????????????????? | | ??????????????????????????????????????? | | ??????????????????????????????????????? | | ??????????????????????????????????????? | | ??????????????????????????????????????? | | ??????????????????????????????????????? | | ??????????????????????????????????????? | | ??????????????????????????????????????? | | ??????????????????????????????????????? | | ??????????????????????????????????????? | | ??????????????????????????????????????? | | ?????????????????????????????????? ?? | | ??????????#############?????????? ?? | | ??????????# ?#????????? ?? | | ??????????# " " " #????????? #?? | | ??????????# " " " #????????# #?? | | ??????????# " " " #????????# #?? | | ??????????# " " " #????????# #?? | | ??????????# " " " #????????# #?? | | ??????????# " " " ########## #?? | | ??????????# "" " " " #=== [ + #?? | | ??????????# " " " " =*= # #?? | | ??????????# "F! " " " ## #?? | | ??????????# "" p [% # ##? | | ??????????# [ % #? | | ??###############+##### @ #? | | ? # #? | | ? #? | | ? # #? | | ? # ###? | | ? ## #??? | | ??############ ##### ## #??? | | ?????????????## # # #??? | | ??????????????# # # #??? | | ??????????????# " # #??? | | ??????????????# # # #??? | | ??????????????# # # #??? | | ??????????????# # # #??? | | ??????????????# # # #??? | | ??????????????# # # #??? | | ??????????????# # # #??? | | ??????????????+ # # #??? | | ??????????????# # # #??? | | ??????????????# # # #??? | | ??????????????# ############## #??? | | ??????????????# #????????????# #??? | | ??????????????# ############## #??? | | ??????????????# = #??? | | ??????????????# ################??? | | ??????????????# #?????????????????? | +----------------------------------------------------+ Best States ------------- Heat Dissipation 112 Energy Generation 52 Energy Capacity 750 Matter Stores 300 Matter Capacity 300 Sight Range 17 Robot Scan Range 16 Terrain Scan Range 16 Terrain Scan Density 85 Base Temperature (-) 100 Armor Coverage 625 Resistance: KI 35 Resistance: TH 35 Resistance: EX 35 Resistance: EM 35 Resistance: I 35 Resistance: S 35 Resistance: P 35 Melee Speed Boost 20 Evasion (%) 55 Targeting Accuracy 10 Recoil Reduction 9 Particle Charging 15 Offensive Hacking 45 Defensive Hacking 10 Relay Coupler Types 1 Relay Coupler Value 40 Item Schematics ----------------- Particle Cannon | -9/Materials | Scanalyzed Sensor Array | -9/Materials | Scanalyzed Imp. Assault Rifle | -9/Materials | Scanalyzed Hardlight Generator | -9/Storage | Hacked Beam Rifle | -9/Storage | Hacked System Restoration Module | -9/Storage | Hacked Arm. Wheel | -9/Storage | Hacked Rocket Launcher | -8/Materials | Scanalyzed Hvy. Hammer | -8/Materials | Scanalyzed Force Field | -8/Materials | Scanalyzed Magnetic Acceleration Cannon | -8/Materials | Scanalyzed Robot Schematics ------------------ R-06 Scavenger | -9/Storage | Hacked Fabricated ------------ R-06 Scavenger | x1 | -7/Factory System Restoration Module | x2 | -7/Factory R-06 Scavenger | x1 | -7/Factory Force Field | x2 | -7/Factory Magnetic Acceleration Cannon | x2 | -7/Factory Alien Tech Used ----------------- None Achievements -------------- A New Friend Infiltrator Maximum Efficiency Prolific Hacker Release The Drones! Treasure Hunter True Hacker Challenges ------------ None RPGLIKE | -11 -10 -10 -9 -9 -9 -8 -8 -8 -8 -7 -7 -7 --------- Run | Jun Mat Min Mat Sto Gar Mat Gar Mat Gar Fac Was Fac Levels Raised 15 | . . 1 5 2 1 2 2 . 1 1 . . XP Earned 28932 | 6000 1345 1000 7033 3289 2031 3184 1740 876 713 1654 67 . XP Spent 25460 | 5970 . . 7260 4500 . 3100 4630 . . . . . Upgrades 45 | 18 . . 14 6 . 2 5 . . . . . Power Slot 3 | 1 . . . 1 . 1 . . . . . . Propulsion Slot 4 | 1 . . . 1 . . 2 . . . . . Utility Slot 6 | 2 . . 3 . . 1 . . . . . . Weapon Slot 5 | 2 . . 1 1 . . 1 . . . . . Core Integrity 2 | 2 . . . . . . . . . . . . Heat Dissipation 10 | 3 . . 6 . . . 1 . . . . . Energy Generation 1 | 1 . . . . . . . . . . . . Energy Storage 1 | . . . . . . . 1 . . . . . Mass Support 1 | 1 . . . . . . . . . . . . Inventory Capacity 2 | 2 . . . . . . . . . . . . Sight Range 1 | . . . 1 . . . . . . . . . Sensor Range 1 | 1 . . . . . . . . . . . . Ranged Accuracy 4 | 2 . . . 2 . . . . . . . . Melee Accuracy 1 | . . . . 1 . . . . . . . . Hack Attack % 1 | . . . 1 . . . . . . . . . Hack Defense % 2 | . . . 2 . . . . . . . . . Protomatter Created 4260 | . 53 70 503 552 363 477 721 637 568 316 . . Integrity Restored 3488 | . 27 21 282 148 184 536 1038 459 600 193 . . Core 2163 | . 27 21 282 148 184 388 361 232 410 110 . . Parts 1325 | . . . . . . 148 677 227 190 83 . . Protomatter Decayed 3088 | . 43 63 406 451 284 263 420 523 346 289 . . Game ------ Seed MolecularColdPurifier Manual? 0 Play Time 03:53:13 Cumulative 17.8 hours Start 2023.12.06 @ 23:30:35 End 2023.12.07 @ 23:50:44 Sessions 5 Manual Loads 0 Difficulty Explorer Special Mode Winter2019/RPGLIKE Game No. 16 Rogue 7 Adventurer 3 Explorer 6 Win Type - Total 0 Types 0/0/0/0/0/0/0/0/0 Lore% 16 Gallery% 22 Achievement% 24 Wizard Run 0 Options --------- ASCII 0 Keyboard 0 Movement Arrows Keybinds 0 Fullscreen 1 Font 18/TerminusBold Map View 76x50 Tactical HUD 1 Map Filters NONE Filters NONE Steam 1 RUN: 73d6e497-1636-427f-bd05-9b72239c8b62